Cogmind - Beta 15 @@@ ROGUE MODE // 2025.05.20 @ 21:43:33 Player: EH-D33 Result: Destroyed by 51-R4A(R) with Subdweller Beam Cannon Performance ------------- Evolutions (0) 0 Regions Visited (3) 600 Robots Destroyed (28) 140 Value Destroyed (614) 614 Prototype IDs (3) 60 Alien Tech Used (0) 0 Bonus (0) 0 TOTAL SCORE: 1414 Bonus ------- None Cogmind --------- Core Integrity 0/250 Matter 278/300 Energy 214/250 System Corruption 0% Temperature Cool (9) Movement Treading (240) Ox1 Location -10/Subcaves Parts ------- > --- POWER (1) -------- Ion Engine > --- PROPULSION (2) --- Light Treads > --- UTILITY (2) ------ Large Storage Unit Signal Interpreter > --- WEAPON (2) ------- Heavy Riot Gun Slug Cannon > --- INVENTORY (15) --- Light Treads Light Treads Flight Unit Flight Unit Flight Unit Improved Heat Sink Huge Storage Unit Sensor Array Riot Gun Barrage Gun Grenade Launcher Subdweller Shrapnel Launcher Makeshift Hammer Peak State ------------ > --- POWER ------------ Ion Engine > --- PROPULSION ------- Light Treads Light Treads > --- UTILITY ---------- Large Storage Unit Signal Interpreter > --- WEAPON ----------- Heavy Riot Gun Makeshift Hammer > --- INVENTORY -------- Light Treads Light Treads Light Treads Flight Unit Flight Unit Flight Unit Improved Heat Sink Huge Storage Unit Sensor Array EM Pulse Gun Riot Gun Assault Rifle Barrage Gun Grenade Launcher Subdweller Shrapnel Launcher [Rating: 15] Favorites ----------- Power Ion Engine Engine Ion Engine Propulsion Light Treads Treads Light Treads Utility Large Storage Unit Storage Large Storage Unit Processor Signal Interpreter Weapon Assault Rifle Energy Gun Heavy Riot Gun Ballistic Gun Assault Rifle Ballistic Cannon Slug Cannon Launcher Grenade Launcher Impact Weapon Makeshift Hammer Build | -11 -10 -10 -10 ------- Run | Yrd Mat Min Sub Slots Evolved . | . . . . Power . | . . . . Propulsion . | . . . . Utility . | . . . . Weapon . | . . . . Parts Attached 21 | 6 8 . 7 Power 2 | 1 1 . . Engine 2 | 1 1 . . Core . | . . . . Reactor . | . . . . Propulsion 3 | 2 . . 1 Treads 3 | 2 . . 1 Leg . | . . . . Wheel . | . . . . Hover . | . . . . Flight . | . . . . Utility 6 | 1 5 . . Device . | . . . . Storage 3 | 1 2 . . Processor 3 | . 3 . . Hackware . | . . . . Protection . | . . . . Artifact . | . . . . Weapon 10 | 2 2 . 6 Energy Gun 3 | 1 . . 2 Energy Cannon . | . . . . Ballistic Gun 3 | 1 1 . 1 Ballistic Cannon 1 | . . . 1 Launcher 2 | . 1 . 1 Special Weapon . | . . . . Impact Weapon 1 | . . . 1 Slashing Weapon . | . . . . Piercing Weapon . | . . . . Special Melee Weapon . | . . . . Unidentified Prototypes . | . . . . Parts Lost 4 | . 1 . 3 Power 1 | . 1 . . Propulsion 2 | . . . 2 Utility . | . . . . Weapon 1 | . . . 1 Highest Loss Streak 1 | . 1 . 1 To Critical Strikes 1 | . 1 . . Average Backups 9 | 1 6 11 13 Power . | . . . . Propulsion 4 | 1 3 6 5 Utility 2 | . 1 2 3 Weapon 2 | . 1 2 4 Tool/Special . | . . . . Unused Backups 10 | . 2 . 8 Power . | . . . . Propulsion 7 | . 2 . 5 Utility 3 | . . . 3 Weapon . | . . . . Tool/Special . | . . . . Average Slot Usage (%) 97 | . 93 100 99 Engine 13 | . 13 14 14 Treads 27 | . 27 28 27 Storage 14 | . 14 14 14 Processor 11 | . 9 14 14 Energy Gun 3 | . 1 . 12 Ballistic Gun 21 | . 25 25 10 Launcher 1 | . . 2 2 Peak Build Rating 15 | 6 8 8 15 Average Rating 8 | 3 6 8 11 On Entrance 5 | . 6 8 8 Naked Turns . | . . . . Heaviest Build 37 | 14 30 30 37 Greatest Support 40 | 40 40 40 40 Greatest Overweight (x) 1 | . 1 . 1 Average Overweight (x) . | . . . . Largest Inventory Capacity 25 | 8 25 15 15 Average Capacity 14 | 6 14 15 15 Most Carried 15 | 3 11 12 15 Average Carried 9 | 1 6 11 13 Final Capacity 15 | 8 15 15 15 Final Carried 13 | 3 10 12 13 Class Distribution -------------------- 100% | Mutant Dominant Class ---------------- Mutant | -10/Materials Mutant | -10/Mines Mutant | -10/Subcaves Resources | -11 -10 -10 -10 ----------- Run | Yrd Mat Min Sub Matter Collected 911 | 222 340 144 205 Remotely . | . . . . Salvage Created 758 | . 444 94 220 Parts 60 | . 32 5 23 Haulers Intercepted 1 | . 1 . . Recyclers Shooed . | . . . . Parts Field Recycled . | . . . . Retrieved Matter . | . . . . Parts Self-Destructed 9 | . . . 9 Prevented . | . . . . Kills | -11 -10 -10 -10 ------- Run | Yrd Mat Min Sub Combat Hostiles Destroyed 24 | . 14 2 8 Guns 23 | . 14 2 7 AOE 1 | . . . 1 Classes Destroyed 5 | . 4 . 1 Hauler 1 | . 1 . . Watcher 3 | . 3 . . Swarmer 13 | . 9 . 4 Grunt 7 | . 5 2 . Subdweller 4 | . . . 4 Best Kill Streak 4 | . 4 2 2 Combat Bots Only 4 | . 4 2 2 Max Kills in Single Turn 2 | . 2 1 1 Gunslinging 1 | . 1 . . Exploded 1 | . . . 1 Melee . | . . . . Uniques/NPCs Destroyed . | . . . . Combat | -11 -10 -10 -10 -------- Run | Yrd Mat Min Sub Hostile Shots Fired 124 | . 64 6 54 Missed 29 | . 15 4 10 Hits 95 | . 49 2 44 Projectile 95 | . 49 2 44 AOE 4 | . . . 4 Critical Strikes 2 | . 2 . . Damage Taken 1271 | . 458 29 784 Core 253 | . 38 . 215 Absorbed by Shields . | . . . . Regen/Repaired (Parts) 236 | . 236 . . Core Remaining (%) 100 | 100 . . . Volleys Fired 75 | . 46 5 24 Largest 2 | . 2 2 2 Hottest 100 | . 60 40 100 Shots Fired 141 | . 92 10 39 Gun 136 | . 91 10 35 Cannon 2 | . . . 2 Launcher 3 | . 1 . 2 Special . | . . . . Kinetic 121 | . 90 10 21 Thermal . | . . . . Explosive 2 | . 1 . 1 Electromagnetic 18 | . 1 . 17 Robot Hit Streak 10 | . 8 10 10 Robot Miss Streak 4 | . 4 . 4 Penetration Max . | . . . . Secondary Targets 3 | . 2 . 1 Max Gunslinging Chain 1 | . 1 . 1 Shots Hit Robots 82 | . 46 9 27 Core Hits 44 | . 25 4 15 Critical Kills . | . . . . Critical Parts Destroyed 1 | . 1 . . Critical Strikes 2 | . 1 . 1 Destroy 2 | . 1 . 1 Melee Attacks 1 | . . . 1 Impact 1 | . . . 1 Slashing . | . . . . Piercing . | . . . . Sneak Attacks . | . . . . Combat Hostiles . | . . . . Follow-up Attacks . | . . . . Damage Inflicted 1238 | . 594 119 525 Guns 1022 | . 594 119 309 Cannons 15 | . . . 15 Explosions 201 | . . . 201 Melee . | . . . . Ramming . | . . . . Kinetic 1002 | . 594 119 289 Thermal . | . . . . Explosive 73 | . . . 73 Electromagnetic 163 | . . . 163 Impact . | . . . . Slashing . | . . . . Piercing . | . . . . Highest Corruption . | . . . . Average Corruption . | . . . . Corruption Purged . | . . . . Corruption Blocked . | . . . . Overload Shots . | . . . . Overflow Damage . | . . . . Projectiles . | . . . . Explosions . | . . . . Melee . | . . . . Knockbacks . | . . . . Impact . | . . . . Kinetic . | . . . . Secondary . | . . . . Self-Inflicted Damage 12 | . 12 . . Shots 1 | . 1 . . Rammed . | . . . . Targets Rammed . | . . . . Kicked . | . . . . Crushed . | . . . . Highest Temperature 10 | . 2 2 10 Average Temperature 4 | . 2 2 6 Received Heat Transfer 219 | . 114 18 87 Siege Activations . | . . . . Martial Activations . | . . . . Shielding Activations . | . . . . Robots Disrupted . | . . . . Combat Hostiles . | . . . . Robots Corrupted . | . . . . Combat Hostiles . | . . . . Parts Fried . | . . . . Impact Corruptions . | . . . . Robots Melted . | . . . . Combat Hostiles . | . . . . Parts Melted . | . . . . Heat Transferred . | . . . . Parts Sabotaged . | . . . . Parts Stolen . | . . . . Parts Stripped . | . . . . Power Chain Reactions . | . . . . Alert | -11 -10 -10 -10 ------- Run | Yrd Mat Min Sub Maximum Alert Level . | . . . . Low Security (%) 100 | 100 100 100 . Level 1 . | . . . . Level 2 . | . . . . Level 3 . | . . . . Level 4 . | . . . . Level 5 . | . . . . High Security . | . . . . Max Security . | . . . . Peak Influence 166 | . 166 50 . Initial 45 | . . 45 . Average 45 | . 73 4 . Influence Increases 641 | . 511 50 80 Destroy 0b10 Robot/C 400 | . 280 40 80 Destroy 0b10 Robot/NC 20 | . 20 . . Destroy Leader 68 | . 58 10 . Successful Hack 47 | . 47 . . Disable Machine 15 | . 15 . . Destroy Structure 16 | . 16 . . Lose Combat Pursuer 75 | . 75 . . Influence Decreases 641 | . 394 167 80 Entered New Map 72 | . . 72 . Time Decay 549 | . 384 95 70 Lost Part 20 | . 10 . 10 Squads Dispatched 1 | . 1 . . Investigation 1 | . 1 . . Extermination . | . . . . Reinforcement . | . . . . Assault . | . . . . Garrison . | . . . . Intercept . | . . . . Searches Triggered . | . . . . Construction Impeded . | . . . . Haulers Reinforced . | . . . . Active Scanning Responses . | . . . . Cargo Convoy Interrupts . | . . . . Stealth | -11 -10 -10 -10 --------- Run | Yrd Mat Min Sub Distress Signals . | . . . . Communications Jammed . | . . . . Distress Signals . | . . . . Times Spotted 34 | . 22 2 10 Peak Tracking Total 4 | . 4 2 4 Tactical Retreats 3 | . 3 . . Traps | -11 -10 -10 -10 ------- Run | Yrd Mat Min Sub Traps Triggered 2 | . 2 . . Indirectly . | . . . . Trap Hack Attempts . | . . . . Triggered . | . . . . Disarmed 2 | . 2 . . Reprogrammed . | . . . . Reused . | . . . . Traps Extracted . | . . . . Installed . | . . . . Triggered . | . . . . Machines | -11 -10 -10 -10 ---------- Run | Yrd Mat Min Sub Machines Disabled 1 | . 1 . . Max in Single Turn 1 | . 1 . . Machines Repaired . | . . . . Machines Dismantled . | . . . . Machines Sabotaged . | . . . . Overloaded Fab Kills . | . . . . Hacking | -11 -10 -10 -10 --------- Run | Yrd Mat Min Sub Machines Accessed 9 | . 9 . . Terminals 8 | . 8 . . Fabricators . | . . . . Repair Stations 1 | . 1 . . Recycling Units . | . . . . Scanalyzers . | . . . . Garrison Access . | . . . . Total Hacks 30 | . 30 . . Successful 20 | . 20 . . Failed 10 | . 10 . . Catastrophic 2 | . 2 . . Database Lockouts . | . . . . Manual 8 | . 8 . . Terminals 23 | . 23 . . Fabricators . | . . . . Repair Stations 7 | . 7 . . Recycling Units . | . . . . Scanalyzers . | . . . . Garrison Access . | . . . . Terminal Hacks 11 | . 11 . . Robot Analysis 1 | . 1 . . Prototype ID Bank 2 | . 2 . . Emergency Access Points 1 | . 1 . . Terminal Index 1 | . 1 . . Alert Level 1 | . 1 . . Disarm Traps 2 | . 2 . . Hauler Manifests 1 | . 1 . . Registered Prototypes 1 | . 1 . . Zone Layout 1 | . 1 . . Fabricator Hacks . | . . . . Repair Station Hacks 6 | . 6 . . Scan Component 3 | . 3 . . Repair 3 | . 3 . . Recycling Unit Hacks . | . . . . Scanalyzer . | . . . . Garrison Access Hacks . | . . . . Unauthorized Hacks 3 | . 3 . . Terminals 3 | . 3 . . Botnet 3 | . 3 . . Fabricators . | . . . . Repair Stations . | . . . . Recycling Units . | . . . . Scanalyzers . | . . . . Garrison Access . | . . . . Data Cores Recovered . | . . . . Used . | . . . . Hacking Detections 9 | . 9 . . Full Trace Events 1 | . 1 . . Feedback Events . | . . . . Feedback Blocked . | . . . . Robot Schematics Acquired . | . . . . Robots Built . | . . . . Authchips . | . . . . Time . | . . . . Total Robot Build Rating . | . . . . Part Schematics Acquired . | . . . . Parts Built . | . . . . Authchips . | . . . . Time . | . . . . Total Part Build Rating . | . . . . Parts Repaired 3 | . 3 . . Time 78 | . 78 . . Parts Recycled . | . . . . Recycled Matter . | . . . . Retrieved Matter . | . . . . Retrieved Components . | . . . . Parts Scanalyzed . | . . . . Part Schematics Acquired . | . . . . Parts Damaged . | . . . . Bothacking | -11 -10 -10 -10 ------------ Run | Yrd Mat Min Sub Used RIF Installer . | . . . . Robots Hacked . | . . . . Non-combat . | . . . . Combat . | . . . . Robot Hacks Applied . | . . . . Relay Couplers Released . | . . . . Fabnet Peak Effective % . | . . . . Robots Rewired . | . . . . Allies Hacked . | . . . . Hacks Repelled . | . . . . Allies | -11 -10 -10 -10 -------- Run | Yrd Mat Min Sub Total Allies . | . . . . Largest Group . | . . . . Highest-Rated Group . | . . . . Highest-Rated Ally . | . . . . Total Orders . | . . . . Ally Attacks . | . . . . Total Damage . | . . . . Kills . | . . . . Allies Corrupted . | . . . . Allies Melted . | . . . . Intel | -11 -10 -10 -10 ------- Run | Yrd Mat Min Sub Active Infowar (turns) 180 | . 180 . . Optics 180 | . 180 . . Robot Analysis Total 1 | . 1 . . Derelict Logs Recovered 2 | . . 1 1 Drone Launches . | . . . . Drone Recoveries . | . . . . Exploration | -11 -10 -10 -10 ------------- Run | Yrd Mat Min Sub Turns Passed 3693 | 78 1644 1062 909 Spaces Moved 1927 | 52 768 594 513 Core 15 | 15 . . . Treads 1912 | 37 768 594 513 Legs . | . . . . Wheels . | . . . . Hover . | . . . . Flight . | . . . . Fastest Speed 50 | 50 160 160 160 Average Speed 159 | 128 160 160 160 Slowest Speed 240 | 160 240 160 240 Overloaded Moves . | . . . . Propulsion Burnouts . | . . . . Robots Hopped . | . . . . Potential Cave-ins . | . . . . Cave-ins Triggered . | . . . . Exploration Rate (%) 60 | 3 98 95 47 Regions Visited 3 Branch Regions 2 Pre-discovered Areas 3 | . . 1 2 Known Exits Taken 2 | . 1 1 . Unknown Exits Taken 1 | 1 . . . Scrap Searched 4 | . . 1 3 Spaces Dug . | . . . . Terrain Destroyed 24 | . 12 . 12 Melee . | . . . . Projectile . | . . . . AOE 24 | . 12 . 12 Terrain Rammed . | . . . . Walls Destroyed . | . . . . Machines Disabled . | . . . . Actions | -11 -10 -10 -10 --------- Run | Yrd Mat Min Sub Total 2400 | 60 1086 695 559 Wait 339 | . 242 94 3 Move 1924 | 51 767 593 513 Hop . | . . . . Pick Up 19 | 3 10 2 4 Fast Attach 14 | 6 8 . . Attach 3 | . 1 . 2 Detach 1 | . 1 . . Swap 17 | . 7 1 9 Drop 7 | . 4 . 3 Fire 75 | . 46 5 24 Melee 1 | . . . 1 Ram . | . . . . Kick . | . . . . Crush . | . . . . Escape Stasis . | . . . . Rewire . | . . . . Trap . | . . . . Miscellaneous . | . . . . Route ------- -11/Scrapyard -10/Materials (discovered 6 exits: *Mat x3 / *Min x2 / *Sub) -10/Mines (discovered 3 exits: *Mat x2 / *Sub) -10/Subcaves History --------- Turn | Location | Event 3 | -11/Scrapyard | Discovered new exit (range 15) 79 | -11/Scrapyard | Entered Materials 182 | -10/Materials | Discovered new exit (range 10) 245 | -10/Materials | Discovered new exit (range 10) 318 | -10/Materials | Build established: Mutant 408 | -10/Materials | Discovered new exit (range 8) 706 | -10/Materials | Discovered new exit (range 18) 925 | -10/Materials | Discovered new exit (range 13) 1082 | -10/Materials | Repaired Lgt. Treads 1144 | -10/Materials | Repaired Lgt. Treads 1172 | -10/Materials | Repaired Assault Rifle 1292 | -10/Materials | Discovered new exit (range 7) 1722 | -10/Materials | Identified exit to Mines 1723 | -10/Materials | Entered Mines 1767 | -10/Mines | Learned Materials trap positions 1886 | -10/Mines | Discovered new exit (range 9) 1932 | -10/Mines | Identified exit to Materials 1959 | -10/Mines | Discovered new exit (range 8) 1972 | -10/Mines | Identified exit to Subcaves 2153 | -10/Mines | A weapon hastily lodged in a ceiling crevice suddenly fell to the ground 2601 | -10/Mines | Discovered exit to Materials (range 10) 2603 | -10/Mines | Learned location of Storage (-7) 2785 | -10/Mines | Entered Subcaves 3084 | -10/Subcaves | Learned location of Zion (-6) 3084 | -10/Subcaves | Met a Zionite searching for "candidates" 3255 | -10/Subcaves | Shifting Twisted Machinery released Slug Cannon 3276 | -10/Subcaves | Shifting Twisted Machinery released Sub. Monowheel 3511 | -10/Subcaves | Core integrity fell below 50% 3611 | -10/Subcaves | Disturbed a concealed Subdweller 3694 | -10/Subcaves | Core integrity fell below 20% 3694 | -10/Subcaves | Destroyed by 51-R4A(R) with Subdweller Beam Cannon Last Messages --------------- 03593_ Searching scrap... 03593_ Found Sub. Machine Gun. 03593_ Found Sub. Monowheel. 03593_ Found 47 Matter. 03594_ Acquired 20 matter. 03596_ Dropped EM Pulse Gun. 03597_ Acquired Lgt. Humpback. 03599_ Dropped Lgt. Humpback. 03603_ Searching scrap... 03603_ Found Mak. Shrapnel Gun. 03603_ Found Scrap Shield. 03603_ Found 55 Matter. 03611_ TX-UWY(R) angrily emerges from the Twisted Machinery. 03612_ TX-UWY(R): "SUBSUB!" 03616_ TX-UWY(R) affixes Scrap Shield Fragment to Scrap Shield. 03616_ TX-UWY(R) destroyed. 03686_ Lgt. Treads destroyed. 03687_ Slug penetrates Twisted Machinery. 03690_ Slug penetrates NC-5GK(R). 03690_ NC-5GK(R) suffers critical hit (Destroy). Map ----- +----------------------------------------------------+ | !#???????????????????????????????????????????????? | | %#??###??????????????????????????????????????????? | | #### #???#####????????????? ????????????????????? | | # #??## ###?????????? ???????????????????? | | # #???## ##??????? # ???????????????????? | | #????# ##????? ????????????????????? | | ##??## #????? ?????????????????????? | | #### # #????# ??????????????????????? | | ## ## ##???# #??????????????????????? | | ### # #??# "#??????????????????????? | | ## ##??#"" ##?????????????????????? | | # ### ##?##" """##?"""????????????????? | | # ### ###" " "# ?????????????????? | | ### "" " " " ????????????????? | | # # ## "" " "" " #????????????????? | | ## ## ?## "" ????????????????? | | ### ####???## " "???????????????? | | ??# ##??????# " " """ """???????????????? | | ?## #?????# ##"## " " """????????????????? | | ?# #???# "##### " " ""?????????????????? | | ?# "#???## #???## " """#?????????????????? | | ?# "#????#### #????#%"RR""""#?????????????????? | | ### #???????## ?????## ##""??????????????????? | | # # ##???????##??????# #?????????????????????? | | """###?????????????# ##?????????????????????? | | " #?????????????# @#??????????????????????? | | " #????????????#;# "#?????????????????????? | | " ##???????????#### #?????????????????????? | | ##"#???????????? ?????????????????????? | | #???????????? ????????????????????? | | " #???????????? ???????????????????? | | """ ##???????????? ???????????????????? | | " ##????????????? ??????????????????? | | ""####??????????????? ##?????????????????? | | ######?????????????????? ##??????????????????? | | ##"" ???????????????? #???????????????????? | | """" ???????????? ???????????????????? | | ?????????? ???????????????????? | | ######## # ??????????? ???????????????????? | | ##????????????????????????? ???????????????????? | | #??????????????????????????????????????????????? | | #??????????????????????????????????????????????? | | ##?????????????????????????????????????????????? | | #?????????????????????????????????????????????? | | ## #???????????????????????????????????????? | | ????????????????????????????????????? | | ???????????????????????????????????? | | ####????????????????????????????????????? | | ##???????????????????????????????????????? | | #????????????????????????????????????????? | +----------------------------------------------------+ Best States ------------- Heat Dissipation 25 Energy Generation 10 Energy Capacity 250 Matter Stores 300 Matter Capacity 300 Sight Range 18 Terrain Scan Density 10 Evasion (%) 50 Targeting Accuracy 5 Recoil Reduction 2 Item Schematics ----------------- None Robot Schematics ------------------ None Fabricated ------------ Nothing Repaired ---------- Lgt. Treads | 36% | -10/Materials Lgt. Treads | 31% | -10/Materials Assault Rifle | 49% | -10/Materials Alien Tech Used ----------------- None Achievements -------------- None Challenges ------------ None Game ------ Seed SegregatorNavigationChainsaw Manual? 0 Play Time 00:22:28 Cumulative 42.8 hours Start 2025.05.20 @ 21:16:51 End 2025.05.20 @ 21:43:33 Sessions 1 Manual Loads 0 Difficulty Rogue Special Mode None Game No. 59 Rogue 59 Adventurer 0 Explorer 0 Win Type - Total 1 Types 1/0/0/0/0/0/0/0/0/0 Lore% 25 Gallery% 32 Achievement% 35 Wizard Run 0 Options --------- Layout 0 ASCII 0 Keyboard 0 Movement Mouse Keybinds 0 Fullscreen 1 Font 18/SmallcapsGlow Map View 76x50 Zoom Use 0% Tactical HUD 1 Map Filters NONE Filters NONE Steam 1 RUN: e7e35e56-1016-4c53-8815-92ae2734daab